Workbook

Sheet Приложение
E1: Приложение
E2: к стандартам раскрытия информации субъектами оптового и розничных рынков электрической энергии
E3: (в ред. Постановления Правительства РФ от 30.01.2019 № 64)
A5: ПРОГНОЗНЫЕ СВЕДЕНИЯ
A6: о расходах за технологическое присоединение
A7: Акционерное общество "Мурманэнергосбыт" на 2022 год
A8: (наименование сетевой организации)
A10: 1. | B10: Полное наименование | E10: Акционерное общество "Мурманэнергосбыт"
A11: 2. | B11: Сокращённое наименование | E11: АО "МЭС"
A12: 3. | B12: Место нахождения | E12: 183034,г.Мурманск, ул.Свердлова, д.39, корп.1
A13: 4. | B13: Адрес юридического лица | E13: 183034,г.Мурманск, ул.Свердлова, д.39, корп.1
A14: 5. | B14: ИНН | E14: 519 090 71 39
A15: 6. | B15: КПП | E15: 785150001
A16: 7. | B16: Ф.И.О. руководителя | E16: Истомина Алла Павловна
A17: 8. | B17: Адрес электронной почты | E17: info@mures.ru
A18: 9. | B18: Контактный телефон | E18: 8(8152)68-63-26/43-90-13
A19: 10. | B19: Факс | E19: 8(8152)68-63-26/43-90-13

Sheet приложение 1.1
H1: Приложение № 1
H2: к Методическим указаниям по определению размера платы за технологическое присоединение
H3: (ред к Приказу ФАС России от 29.08.2017 № 1135/17)
B4: Расходы на строительство введенных в эксплуатацию объектов электросетевого хозяйства для целей технологического присоединения и для целей реализации иных мероприятий инвестиционной программы территориальной сетевой организации на территории городских населенных пунктов за 2018-2020 годы
B5: Наименование территориальной сетевой организации: | D5: Акционерное общество "Мурманэнергосбыт"
B7: № | C7: Объект электросетевого хозяйства | D7: Год ввода объекта | E7: Марка провода (кабеля) / тип подстанции, пункта секционирования, прибора учета | F7: Уровень напряжения, кВ | G7: Протяженность (для линий электропередачи), метров/Количество пунктов секционирования, штук/Количество точек учета, штук | H7: Пропускная способность, кВт / Максимальная мощность, кВт | I7: Расходы на строительство объекта, руб. | J7: Дополнительные сведения
B8: 1 | C8: 2 | D8: 3 | E8: 4 | F8: 5 | G8: 6 | H8: 7 | I8: 8 | J8: 9
B9: 1 | C9: Строительство воздушных линий | G9: =G10+G1763+G3510+G5865 -> 10892.5 | I9: =I10+I1763+I3510+I5865 -> 14605309.58
B10: 1.1 | C10: Номинальное напряжение 0,4 кВ и ниже | G10: =G11+G582+G1172 -> 2898.5 | I10: =I11+I582+I1172 -> 4330629.32
B11: 1.1.1 | C11: Тип опоры - деревянный | G11: =G12+G284 -> 2898.5 | I11: =I12+I284 -> 4330629.32
B12: 1.1.1.1 | C12: Тип провода - изолированный | G12: =G13+G85+G149+G226 -> 2898.5 | I12: =I13+I85+I149+I226 -> 4330629.32
B13: 1.1.1.1.1 | C13: Материал провода - медный
C14: Cечение провода до 50 кв. мм включительно
C15: Одноцепные
C16: <пообъектная расшифровка>
C20: Двухцепные
C24: Cечение провода от 50 до 100 кв. мм включительно
C25: Одноцепные
C26: <пообъектная расшифровка>
C30: Двухцепные
C34: <пообъектная расшифровка>
C43: Cечение провода от 100 до 200 кв. мм включительно
C44: Одноцепные
C45: <пообъектная расшифровка>
C49: Двухцепные
C53: Cечение провода от 200 до 500 кв. мм включительно
C54: Одноцепные
C55: <пообъектная расшифровка>
C59: Двухцепные
C63: Cечение провода от 500 до 800 кв. мм включительно
C64: Одноцепные
C65: <пообъектная расшифровка>
C69: Двухцепные
C74: Cечение провода свыше 800 кв. мм
C75: Одноцепные
C76: <пообъектная расшифровка>
C80: Двухцепные
B85: 1.1.1.1.2 | C85: Материал провода - сталеалюминиевый | G85: =G86+G103 -> 2848.5 | I85: =I86+I103 -> 4296382.89
B86: 1.1.1.1.2.1 | C86: Cечение провода до 50 кв. мм включительно | G86: =G87 -> 2388.5 | I86: =I87 -> 3557347.07
B87: 1.1.1.1.2.1.1 | C87: Одноцепные | G87: =SUM(G88:G100) -> 2388.5 | I87: =SUM(I88:I100) -> 3557347.07
B88: 1.1.1.1.2.1.1.1 | C88: Воздушная линия электропередачи 0,4 кВ с кабельной вставкой | D88: 2018-05-31 | E88: СИП-2 3х25+1х35 | F88: 0.4 | G88: =232 -> 232 | H88: 65.8 | I88: =ROUND(193149.86/282*232,2) -> 158903.43 | J88: Договор №ТП-032/2017 от 27.09.2017г. ФЛ Тесленко Сергей Владимирович
B89: 1.1.1.1.2.1.1.2 | C89: Воздушная линия 0,4кВ, Л-507 | D89: 2019-12-20 | E89: СИП-2А 3х25+1х35 | F89: 0.4 | G89: 301 | H89: 65.8 | I89: 833990 | J89: Договор №ТП 013/2018 от 06.07.2018 г. Мурманскавтодор
B90: 1.1.1.1.2.1.1.3 | C90: Воздушная линия 0,4 кВ №1 КТПН-8 Ф.1,2 | D90: 2019-11-30 | E90: СИП-2 4х50 | F90: 0.4 | G90: 160 | H90: 115.37 | I90: =ROUND(496740.38/(160+257)*160,2) -> 190595.83 | J90: Договор №ТП 667/2018 от 08.08.2018 Мальцева А.Г., №ТП 680/2018 от 15.08.2018 Уваров Е.Ф. | K90: 496740.38
E91: СИП-4 4х16 | F91: 0.4 | G91: 257 | H91: 59.17 | I91: =496740.38-190595.83 -> 306144.55
B92: 1.1.1.1.2.1.1.4 | C92: Воздушная линия 0,4 кВ №2 КТПН-8 Ф.3,4 | D92: 2019-11-30 | E92: СИП-2 4х50 | F92: 0.4 | G92: 312 | H92: 115.37 | I92: =ROUND(531271.79/589*312,2) -> 281420.71 | K92: =576371.26-45099.47 -> 531271.79
E93: СИП-4 4х16 | F93: 0.4 | G93: 195 | H93: 59.17 | I93: =ROUND(531271.79/589*195,2) -> 175887.94
E94: СИП-4 2х16 | F94: 0.4 | G94: 82 | H94: 59.17 | I94: =531271.79-281420.71-175887.94 -> 73963.14
B95: 1.1.1.1.2.1.1.5 | C95: Воздушная линия изолированная 0,4кВ (ВЛИ-0,4кВ ОЛИ-12/5а) | D95: 2020-08-20 | E95: СИП-2А 3х50+1х54.6 | F95: 0.4 | G95: 157.5 | H95: 128 | I95: 200522.42 | J95: Договор №ТП-025/2019 от 08.07.2019 ФЛ Гуляев Вадим Андреевич
B96: 1.1.1.1.2.1.1.6 | C96: Воздушная линия ВЛИ-0,4кВ Л-12/6 | D96: 2020-10-07 | E96: СИП-2 3х50+1х50 | F96: 0.4 | G96: 230 | H96: 128 | I96: 476001.19 | J96: Договор №ТП-040/2019 от 12.09.2019 ФЛ Балыков Андрей Николаевич
B97: 1.1.1.1.2.1.1.7 | C97: Воздушная линия ВЛИ-0,4кВ ОЛИ-12/5в | D97: 2020-11-02 | E97: СИП-2 3х50+1х50 | F97: 0.4 | G97: 260 | H97: 128 | I97: 603191.25 | J97: Договор №ТП-042/2019 от 30.09.2019 ФЛ Уракова Надежда Ивановна
B98: 1.1.1.1.2.1.1.8 | C98: Воздушная линия ВЛИ-0,4кВ ОЛИ-37/7-8б | D98: 2020-12-24 | E98: СИП-2А 3х50+1х54,6 | F98: 0.4 | G98: 24 | H98: 128 | I98: 55124.91 | J98: Договор №ТП-001/2020 от 10.01.2020 ФЛ Ляхевич Александр Григорьевич
B99: 1.1.1.1.2.1.1.9 | C99: Воздушная линия изолированная 0,4кВ (ВЛИ-0,4кВ ОЛИ-12/5б) | D99: 2020-08-03 | E99: СИП-2А 3х50+1х54.6 | F99: 0.4 | G99: 83 | H99: 128 | I99: 129955.43 | J99: Договор №ТП-028/2019 от 07.08.2019 ФЛ Пивкин Виктор Геннадьевич
B100: 1.1.1.1.2.1.1.10 | C100: Воздушная линия от опоры №8 ВЛ-0,4кВ (ВЛ-0,4кВ ОЛ-519/8) | D100: 2020-09-10 | E100: СИП-2А 3х35+1х50 | F100: 0.4 | G100: 95 | H100: 105 | I100: 71646.27 | J100: Договор №ТП-004/2020 от 12.03.2020 ФЛ Зейкан Иван Иванович
B101: 1.1.1.1.2.1.2 | C101: Двухцепные
B103: 1.1.1.1.2.2 | C103: Cечение провода от 50 до 100 кв. мм включительно | G103: =G104 -> 460 | I103: =I104 -> 739035.82
B104: 1.1.1.1.2.2.1 | C104: Одноцепные | G104: =G105+G106 -> 460 | I104: =I105+I106 -> 739035.82
B105: 1.1.1.1.2.2.1.1 | C105: Воздушная линия 0,4 кВ №3 ТП-64 | D105: ввод объекта 12.01.2021 ( акт о ТП 18.12.2020) | E105: СИП-2 3х95+1х95 | F105: 0.4 | G105: 440 | H105: 197 | I105: =ROUND(739035.82/460*440,2) -> 706903.83 | J105: Договор №ТП-792/2020 от 05.02.2020 ФЛ Коширова Наталья Викторовна | K105: 739035.82
E106: СИП-4 4х16 | F106: 0.4 | G106: 20 | H106: 59.17 | I106: =739035.82-706903.83 -> 32131.99
B107: 1.1.1.1.2.2.2 | C107: Двухцепные
B108: 1.1.1.1.2.3 | C108: Cечение провода от 100 до 200 кв. мм включительно
C109: Одноцепные
C110: <пообъектная расшифровка>
C114: Двухцепные
B118: 1.1.1.1.2.4 | C118: Cечение провода от 200 до 500 кв. мм включительно
C119: Одноцепные
C120: <пообъектная расшифровка>
C124: Двухцепные
B128: 1.1.1.1.2.5 | C128: Cечение провода от 500 до 800 кв. мм включительно
C129: Одноцепные
C130: <пообъектная расшифровка>
C134: Двухцепные
B138: 1.1.1.1.2.6 | C138: Cечение провода свыше 800 кв. мм
C139: Одноцепные
C140: <пообъектная расшифровка>
C144: Двухцепные
B149: 1.1.1.1.3 | C149: Материал провода - стальной
C150: Cечение провода до 50 кв. мм включительно
C151: Одноцепные
C152: <пообъектная расшифровка>
C156: Двухцепные
C172: Cечение провода от 50 до 100 кв. мм включительно
C173: Одноцепные
C174: <пообъектная расшифровка>
C178: Двухцепные
C183: Cечение провода от 100 до 200 кв. мм включительно
C184: Одноцепные
C185: <пообъектная расшифровка>
C189: Двухцепные
C193: Cечение провода от 200 до 500 кв. мм включительно
C194: Одноцепные
C195: <пообъектная расшифровка>
C199: Двухцепные
C204: Cечение провода от 500 до 800 кв. мм включительно
C205: Одноцепные
C206: <пообъектная расшифровка>
C210: Двухцепные
C215: Cечение провода свыше 800 кв. мм
C216: Одноцепные
C217: <пообъектная расшифровка>
C221: Двухцепные
B226: 1.1.1.1.4 | C226: Материал провода - алюминиевый | G226: =G227 -> 50 | I226: =I227 -> 34246.43
B227: 1.1.1.1.4.1 | C227: Cечение провода до 50 кв. мм включительно | G227: =G229 -> 50 | I227: =I228 -> 34246.43
B228: 1.1.1.1.4.1.1 | C228: Одноцепные | I228: =I229 -> 34246.43
B229: 1.1.1.1.4.1.1.1 | C229: Воздушная линия электропередачи 0,4 кВ с кабельной вставкой ( кабельная вставка) | D229: 2018-05-31 | E229: (АВВГ 4х50) | F229: 0.4 | G229: 50 | H229: 65.8 | I229: =ROUND(193149.86/282*50,2) -> 34246.43 | J229: Договор №ТП-032/2017 от 27.09.2017г. ФЛ Тесленко Сергей Владимирович
B230: 1.1.1.1.4.1.2 | C230: Двухцепные
B231: 1.1.1.1.4.2 | C231: Cечение провода от 50 до 100 кв. мм включительно
C232: Одноцепные
C233: <пообъектная расшифровка>
C237: Двухцепные
B242: 1.1.1.1.4.3 | C242: Cечение провода от 100 до 200 кв. мм включительно
C243: Одноцепные
C244: <пообъектная расшифровка>
C248: Двухцепные
B253: 1.1.1.1.4.4 | C253: Cечение провода от 200 до 500 кв. мм включительно
C254: Одноцепные
C255: <пообъектная расшифровка>
C259: Двухцепные
B263: 1.1.1.1.4.5 | C263: Cечение провода от 500 до 800 кв. мм включительно
C264: Одноцепные
C265: <пообъектная расшифровка>
C269: Двухцепные
B273: 1.1.1.1.4.6 | C273: Cечение провода свыше 800 кв. мм
C274: Одноцепные
C275: <пообъектная расшифровка>
C279: Двухцепные
B284: 1.1.1.2 | C284: Тип провода - неизолированный
C285: Материал провода - медный
C286: Cечение провода до 50 кв. мм включительно
C287: Одноцепные
C288: <пообъектная расшифровка>
C292: Двухцепные
C296: Cечение провода от 50 до 100 кв. мм включительно
C297: Одноцепные
C298: <пообъектная расшифровка>
C302: Двухцепные
C307: Cечение провода от 100 до 200 кв. мм включительно
C308: Одноцепные
C309: <пообъектная расшифровка>
C313: Двухцепные
C318: Cечение провода от 200 до 500 кв. мм включительно
C319: Одноцепные
C320: <пообъектная расшифровка>
C324: Двухцепные
C329: Cечение провода от 500 до 800 кв. мм включительно
C330: Одноцепные
C331: <пообъектная расшифровка>
C335: Двухцепные
C340: Cечение провода свыше 800 кв. мм
C341: Одноцепные
C342: <пообъектная расшифровка>
C346: Двухцепные
C351: Материал провода - сталеалюминиевый
C352: Cечение провода до 50 кв. мм включительно
C353: Одноцепные
C354: <пообъектная расшифровка>
C358: Двухцепные
C374: Cечение провода от 50 до 100 кв. мм включительно
C375: Одноцепные
C376: <пообъектная расшифровка>
C380: Двухцепные
C385: Cечение провода от 100 до 200 кв. мм включительно
C386: Одноцепные
C387: <пообъектная расшифровка>
C391: Двухцепные
C395: Cечение провода от 200 до 500 кв. мм включительно
C396: Одноцепные
C397: <пообъектная расшифровка>
C401: Двухцепные
C406: Cечение провода от 500 до 800 кв. мм включительно
C407: Одноцепные
C408: <пообъектная расшифровка>
C412: Двухцепные
C417: Cечение провода свыше 800 кв. мм
C418: Одноцепные
C419: <пообъектная расшифровка>
C423: Двухцепные
C428: Материал провода - стальной
C429: Cечение провода до 50 кв. мм включительно
C430: Одноцепные
C431: <пообъектная расшифровка>
C435: Двухцепные
C451: Cечение провода от 50 до 100 кв. мм включительно
C452: Одноцепные
C453: <пообъектная расшифровка>
C457: Двухцепные
C462: Cечение провода от 100 до 200 кв. мм включительно
C463: Одноцепные
C464: <пообъектная расшифровка>
C468: Двухцепные
C472: Cечение провода от 200 до 500 кв. мм включительно
C473: Одноцепные
C474: <пообъектная расшифровка>
C478: Двухцепные
C483: Cечение провода от 500 до 800 кв. мм включительно
C484: Одноцепные
C485: <пообъектная расшифровка>
C489: Двухцепные
C494: Cечение провода свыше 800 кв. мм
C495: Одноцепные
C496: <пообъектная расшифровка>
... 16778 more rows

Sheet приложение 2
E1: Приложение № 2
E2: к Методическим указаниям по определению размера платы за технологическое присоединение
E3: (ред к Приказу ФАС России от 29.08.2017 № 1135/17)
B4: Расходы на выполнение мероприятий по технологическому присоединению, не связанных со строительством объектов электросетевого хозяйства
B6: Наименование территориальной сетевой организации: | D6: Акционерное общество "Мурманэнергосбыт"
B8: № п/п | C8: Наименование мероприятий | D8: Информация для расчета стандартизированной тарифной ставки С1 | G8: Расходы на одно присоединение (руб. на одно ТП)
D9: Расходы согласно приложению 3 по каждому мероприятию (руб.) | E9: Количество технологических присоединений (шт.) | F9: Объем максимальной мощности (кВт)
B10: 1 | C10: Данные за 2020 год
B11: 1.1 | C11: Подготовка и выдача сетевой организацией технических условий заявителю | D11: 157006 | E11: 114 | F11: 1967 | G11: =IF(E11=0,0,D11/E11) -> 1377.245614
B12: 1.2 | C12: Проверка сетевой организацией выполнения заявителем технических условий: | D12: - | E12: - | F12: - | G12: -
B13: 1.2.1 | C13: Выдача сетевой организацией акта об осуществлении технологического присоединения заявителям, указанным в абзаце восьмом пункта 24 МУ 1135/17 | D13: 455873 | E13: 109 | F13: 1215 | G13: =IF(E13=0,0,D13/E13) -> 4182.321101
B14: 1.2.2 | C14: Проверка сетевой организацией выполнения технических условий заявителями, указанными в абзаце девятом пункта 24 МУ 1135/17 | D14: 23234 | E14: 5 | F14: 752 | G14: =IF(E14=0,0,D14/E14) -> 4646.8
B15: 2 | C15: Данные за 2019 год
B16: 2.1 | C16: Подготовка и выдача сетевой организацией технических условий заявителю | D16: 130807 | E16: 107 | F16: 1311.9 | G16: =IF(E16=0,0,D16/E16) -> 1222.495327
B17: 2.2 | C17: Проверка сетевой организацией выполнения заявителем технических условий | D17: - | E17: - | F17: - | G17: -
B18: 2.2.1 | C18: Выдача сетевой организацией акта об осуществлении технологического присоединения заявителям, указанным в абзаце восьмом пункта 24 МУ 1135/17 | D18: 420842 | E18: 106 | F18: 1251.9 | G18: =IF(E18=0,0,D18/E18) -> 3970.207547
B19: 2.2.2 | C19: Проверка сетевой организацией выполнения технических условий заявителями, указанными в абзаце девятом пункта 24 МУ 1135/17 | D19: 6600 | E19: 1 | F19: 60 | G19: =IF(E19=0,0,D19/E19) -> 6600
B20: 3 | C20: Данные за 2018 год
B21: 3.1 | C21: Подготовка и выдача сетевой организацией технических условий заявителю | D21: 148775 | E21: 101 | F21: 1330.88 | G21: =IF(E21=0,0,D21/E21) -> 1473.019802
B22: 3.2 | C22: Проверка сетевой организацией выполнения заявителем технических условий | D22: - | E22: - | F22: - | G22: -
B23: 3.2.1 | C23: Выдача сетевой организацией акта об осуществлении технологического присоединения заявителям, указанным в абзаце восьмом пункта 24 МУ 1135/17 | D23: 441035 | E23: 98 | F23: 1001.28 | G23: =IF(E23=0,0,D23/E23) -> 4500.357143
B24: 3.2.2 | C24: Проверка сетевой организацией выполнения технических условий заявителями, указанными в абзаце девятом пункта 24 МУ 1135/17 | D24: 12957 | E24: 3 | F24: 329.6 | G24: =IF(E24=0,0,D24/E24) -> 4319
B27: Ульянкова В.В.
B30: Примечание:
B31: 1. Сведения предоставляются за три последних года, по которым имеются отчетные данные.
B32: 2. Расходы на выполнение мероприятий по технологическому присоединению, не связанных со строительством объектов электросетевого хозяйства, определяются в соответствии с данными раздельного учета сетевой организации.
B33: 3. Проверка сетевой организацией выполнения заявителем технических условий выполняется в соответствии с разделом IX Правил технологического присоединения.
B34: 4. Договор между сетевой организацией и заявителями, указанными в пунктах 12(1), 13(2) - 13(5) и 14 Правил технологического присоединения, заключается также в соответствии с разделом X Правил технологического присоединения.

Sheet Пилож.№ 2
C1: Приложение № 2
C2: к стандартам раскрытия информации субъектами оптового и розничных рынков электрической энергии
C3: (в ред. Постановления Правительства РФ от 30.01.2019 № 64)
A5: ИНФОРМАЦИЯ
A6: о фактических средних данных о присоединенных объемах максимальной мощности за 3 предыдущих года по каждому мероприятию
A7: № п/п | B7: Наименование мероприятий | C7: Фактические расходы на строительство подстанций за 3 предыдущих года ( тыс. руб) (без НДС) | D7: Объём мощности, введённой в основные фонды за 3 предыдущих года (кВт)
A9: 1. | B9: Строительство пунктов секционирования (распределительных пунктов) | C9: - | D9: -
A10: 2. | B10: Строительство комплектных трансформаторных подстанций и распределительных трансформаторных подстанций с уровнем напряжения до 35 кВ | C10: 3382.341 | D10: =20+65 -> 85
A11: 3. | B11: Строительство центров питания и подстанций уровнем напряжения 35 кВ и выше | C11: - | D11: -
A13: Исполнитель
A14: В.В.Ульянкова

Sheet Прилож. № 3
D1: Приложение № 3
D2: к стандартам раскрытия информации субъектами оптового и розничных рынков электрической энергии
D3: (в ред. Постановления Правительства РФ от 30.01.2019 № 64)
A5: ИНФОРМАЦИЯ
A6: о фактических средних данных о длине линий электропередачи и об объемах максиальной мощности построенных объектов за 3 предыдущих года по каждому мероприятию
A7: № п/п | B7: Наименование мероприятий | C7: Расходы на строительство воздушных и кабельных линий электропередачи на уровне напряжения, фактически построенных за 3 последние 3 года (тыс. руб) (без НДС) | D7: Длина воздушных и кабельных линий электропередачи на уровне напряжения, фактически построенных за 3 года (км) | E7: Объём максимальной мощности, присоединённой путём строительства воздушных линий или кабельных линий за 3 последние года ( кВт)
A9: 1. | B9: Строительство кабельных линий электропередачи | C9: =C10+C11+C12 -> 7420.582 | D9: =D10+D11+D12 -> 2.596 | E9: =E10+E11+E12 -> 164
B10: 0,4 кВ | C10: 2394.915 | D10: 0.985 | E10: 64
B11: 1 - 20 кВ | C11: 5025.667 | D11: 1.611 | E11: 100
B12: 35 кВ | C12: 0 | D12: 0 | E12: 0
A13: 2. | B13: Строительство воздушных линий электропередачи: | C13: =C14+C15+C16 -> 14605.309 | D13: =D14+D15+D16 -> 10.8925 | E13: =E14+E15+E16 -> 306
B14: 0,4 кВ | C14: =34.246+739.036+3557.347 -> 4330.629 | D14: =0.05+0.46+2.3885 -> 2.8985 | E14: 241
B15: 1 - 20 кВ | C15: 10274.68 | D15: 7.994 | E15: 65
B16: 35 кВ | C16: 0 | D16: 0 | E16: 0
A18: Исполнитель
A19: В.В.Ульянкова

Sheet Прилож. № 4
G1: Приложение № 4
G2: к стандартам раскрытия информации субъектами оптового и розничных рынков электрической энергии
G3: (в ред. Постановления Правительства РФ от 30.01.2019 № 64)
A5: ИНФОРМАЦИЯ
A6: об осуществлении технологического присоединения по договорам, заключенным за текущий год (9 месяцев 2021г)
B7: информация актуальна на 01.10.2021
A8: № п/п | B8: Категория заявителей | C8: Количество договоров (штук) | F8: Максимальная мощность (кВт) | I8: Стоимость договоров (без НДС) (тыс. руб)
C9: 0,4 кВ | D9: 1 - 20 кВ | E9: 35 кВ и выше | F9: 0,4 кВ | G9: 1 - 20 кВ | H9: 35 кВ и выше | I9: 0,4 кВ | J9: 1 - 20 кВ | K9: 35 кВ и выше
A10: 1. | B10: До 15 кВт - всего | C10: 59 | D10: - | E10: - | F10: 430.8 | G10: - | H10: - | I10: 28 | J10: - | K10: -
B11: в том числе льготная категория (*) | C11: 53 | D11: - | E11: - | F11: 427.7 | G11: - | H11: - | I11: =24.3 -> 24.3 | J11: - | K11: -
A12: 2. | B12: От 15 до 150 кВт - всего | C12: 5 | E12: - | F12: 153.5 | H12: - | I12: =195.2 -> 195.2 | K12: -
B13: в том числе льготная категория (**) | C13: - | D13: - | E13: - | F13: - | G13: - | H13: - | I13: - | J13: - | K13: -
A14: 3. | B14: От 150 до 670 кВт - всего | C14: - | D14: - | E14: - | F14: - | G14: - | H14: - | I14: - | J14: - | K14: -
B15: в том числе по индивидуальному проекту | C15: - | D15: - | E15: - | F15: - | G15: - | H15: - | I15: - | J15: - | K15: -
A16: 4. | B16: От 670кВт до 8900 кВт - всего | C16: - | D16: - | E16: - | F16: - | G16: - | H16: - | I16: - | J16: - | K16: -
B17: в том числе по индивидуальному проекту | C17: - | D17: - | E17: - | F17: - | G17: - | H17: - | I17: - | J17: - | K17: -
A18: 5. | B18: От 8900 кВт - всего | C18: - | D18: - | E18: - | F18: - | G18: - | H18: - | I18: - | J18: - | K18: -
B19: в том числе по индивидуальному проекту | C19: - | D19: - | E19: - | F19: - | G19: - | H19: - | I19: - | J19: - | K19: -
A20: 6. | B20: Объекты генерации | C20: - | D20: - | E20: - | F20: - | G20: - | H20: - | I20: - | J20: - | K20: -
A22: (*) | B22: Заявители, оплачивающие технологическое присоединение своих энергопринимающих устройств в размере не более 550 рублей.
A23: (**) | B23: Заявители - юридические лица или индивидуальные предприниматели, заключившие договор об осуществлении технологического присоединения по одному источнику электроснабжения энергопринимающих устройств максимальной мощностью свыше 15 и до 150 кВт включительно ( с учётом ранее присоединённоых энергопринимающих устройств), у которых в договоре предусматривается беспроцентная рассрочка платежа за технологическое присоединение в размере 95 процентов платы за технологическое присоединение с условием ежеквартального внесения платы равными долями от общей суммы рассрочки до 3 лет со дня подписания сторонами акта об осуществлении технологического присоединения
A24: Исполнитель
A25: В.В.Ульянкова

Sheet Прилож. № 5
C1: Приложение № 5
C2: к стандартам раскрытия информации субъектами оптового и розничных рынков электрической энергии
C3: (в ред. Постановления Правительства РФ от 30.01.2019 № 64)
A5: ИНФОРМАЦИЯ
A6: о поданных заявках на технологическое присоединение за текущий год (9 месяцев 2021г)
B7: информация актуальна на 01.10.2021
A8: № п/п | B8: Категория заявителей | C8: Количество заявок (штук) | F8: Максимальная мощность (кВт)
C9: 0,4 кВ | D9: 1 - 20 кВ | E9: 35 кВ и выше | F9: 0,4 кВ | G9: 1 - 20 кВ | H9: 35 кВ и выше
A10: 1. | B10: До 15 кВт - всего | C10: =51+39 -> 90 | D10: 1 | E10: - | F10: =289+178.5 -> 467.5 | G10: 10 | H10: -
B11: в том числе льготная категория (*) | C11: =51+23 -> 74 | D11: 1 | E11: - | F11: =289+143 -> 432 | G11: 10 | H11: -
A12: 2. | B12: От 15 до 150 кВт - всего | C12: =8+2 -> 10 | D12: - | E12: - | F12: =546.5+70 -> 616.5 | G12: - | H12: -
B13: в том числе льготная категория (**) | C13: - | D13: - | E13: - | F13: - | G13: - | H13: -
A14: 3. | B14: От 150 до 670 кВт - всего | C14: =1+1 -> 2 | D14: - | E14: - | F14: =180+175 -> 355 | G14: - | H14: -
B15: в том числе по индивидуальному проекту | C15: - | D15: - | E15: - | F15: - | G15: - | H15: -
A16: 4. | B16: От 670кВт - всего | C16: - | D16: - | E16: - | F16: - | G16: - | H16: -
B17: в том числе по индивидуальному проекту | C17: - | D17: - | E17: - | F17: - | G17: - | H17: -
A19: (*) | B19: Заявители, оплачивающие технологическое присоединение своих энергопринимающих устройств в размере не более 550 рублей.
A20: (**) | B20: Заявители - юридические лица или индивидуальные предприниматели, заключившие договор об осуществлении технологического присоединения по одному источнику электроснабжения энергопринимающих устройств максимальной мощностью свыше 15 и до 150 кВт включительно ( с учётом ранее присоединённоых энергопринимающих устройств), у которых в договоре предусматривается беспроцентная рассрочка платежа за технологическое присоединение в размере 95 процентов платы за технологическое присоединение с условием ежеквартального внесения платы равными долями от общей суммы рассрочки до 3 лет со дня подписания сторонами акта об осуществлении технологического присоединения
A21: Исполнитель
A22: В.В.Ульянкова
